[Event "*** Titled Tuesday Blitz"]
[Site "Chess.com"]
[Date "2020.05.26"]
[Round "3"]
[White "bakki78"]
[Black "MomchilPetkov"]
[Result "1-0"]
[WhiteElo "2762"]
[BlackElo "2527"]
[TimeControl "180+1"]
[EndTime "10:24:18 PDT"]
[Termination "bakki78 won by resignation"]

1. e4 {[%clk 0:02:59.9]} 1... c5 {[%clk 0:02:52.8]} 2. c3 {[%clk 0:02:59.2]}
2... a6 {[%clk 0:02:49.7]} 3. d4 {[%clk 0:02:58.3]} 3... cxd4 {[%clk 0:02:48.3]}
4. cxd4 {[%clk 0:02:58.4]} 4... d5 {[%clk 0:02:48.8]} 5. exd5 {[%clk 0:02:57.7]}
5... Nf6 {[%clk 0:02:47.7]} 6. Nc3 {[%clk 0:02:57.8]} 6... Nxd5 {[%clk
0:02:46.8]} 7. Bc4 {[%clk 0:02:57.2]} 7... Nxc3 {[%clk 0:02:36.4]} 8. bxc3
{[%clk 0:02:56.9]} 8... e6 {[%clk 0:02:31.6]} 9. Bb3 {[%clk 0:02:46.2]} 9... Bd6
{[%clk 0:02:29.9]} 10. Qg4 {[%clk 0:02:45.1]} 10... Qc7 {[%clk 0:02:21.3]} 11.
Bd2 {[%clk 0:02:36.9]} 11... O-O {[%clk 0:02:17.3]} 12. Nf3 {[%clk 0:02:37]}
12... Nd7 {[%clk 0:02:09.5]} 13. O-O {[%clk 0:02:34.7]} 13... Nf6 {[%clk
0:02:09.5]} 14. Qh4 {[%clk 0:02:34.8]} 14... b5 {[%clk 0:02:02.1]} 15. Bg5
{[%clk 0:02:32.9]} 15... Be7 {[%clk 0:02:02.5]} 16. Bc2 {[%clk 0:02:17.2]} 16...
h6 {[%clk 0:01:21.2]} 17. Bxf6 {[%clk 0:02:17.1]} 17... Bxf6 {[%clk 0:01:21.2]}
18. Qe4 {[%clk 0:02:17.7]} 18... g6 {[%clk 0:01:11.4]} 19. Qxa8 {[%clk
0:02:17.4]} 19... Bb7 {[%clk 0:01:12]} 20. Qa7 {[%clk 0:02:17.3]} 20... Be7
{[%clk 0:01:12.6]} 21. Be4 {[%clk 0:02:13.7]} 1-0

[Event "*** Titled Tuesday Blitz"]
[Site "Chess.com"]
[Date "2020.05.26"]
[Round "3"]
[White "Majesth"]
[Black "ZuchBolt"]
[Result "1-0"]
[WhiteElo "2445"]
[BlackElo "2228"]
[TimeControl "180+1"]
[EndTime "10:24:35 PDT"]
[Termination "Majesth won by resignation"]

1. d4 {[%clk 0:03:00.9]} 1... d5 {[%clk 0:02:48.5]} 2. Bg5 {[%clk 0:03:00.2]}
2... h6 {[%clk 0:02:47.5]} 3. Bh4 {[%clk 0:03:00.2]} 3... g5 {[%clk 0:02:46.6]}
4. Bg3 {[%clk 0:02:59.8]} 4... Bg7 {[%clk 0:02:47]} 5. c3 {[%clk 0:02:56.5]}
5... c5 {[%clk 0:02:45.4]} 6. dxc5 {[%clk 0:02:55]} 6... Nf6 {[%clk 0:02:41.6]}
7. Nd2 {[%clk 0:02:40.8]} 7... O-O {[%clk 0:02:23.4]} 8. h4 {[%clk 0:02:37.9]}
8... Nh5 {[%clk 0:02:19.6]} 9. Bxb8 {[%clk 0:02:32.3]} 9... Rxb8 {[%clk
0:02:19.1]} 10. hxg5 {[%clk 0:02:32.5]} 10... Nf4 {[%clk 0:02:18.8]} 11. gxh6
{[%clk 0:02:28.8]} 11... Bf6 {[%clk 0:02:18.8]} 12. e3 {[%clk 0:02:12.4]} 12...
Ne6 {[%clk 0:02:17.9]} 13. Ne2 {[%clk 0:01:59.9]} 13... Nxc5 {[%clk 0:02:17.2]}
14. Ng3 {[%clk 0:01:56.6]} 14... b5 {[%clk 0:02:09.2]} 15. Nh5 {[%clk
0:01:44.3]} 15... e5 {[%clk 0:02:07.3]} 16. Qf3 {[%clk 0:01:33.1]} 16... Bg5
{[%clk 0:01:59.6]} 17. Qg3 {[%clk 0:01:27.7]} 17... Kh7 {[%clk 0:01:58.4]} 18.
Qxe5 {[%clk 0:01:16.7]} 1-0

[Event "*** Titled Tuesday Blitz"]
[Site "Chess.com"]
[Date "2020.05.26"]
[Round "3"]
[White "TheSodabread"]
[Black "fabianvivasz"]
[Result "0-1"]
[WhiteElo "1998"]
[BlackElo "2282"]
[TimeControl "180+1"]
[EndTime "10:24:38 PDT"]
[Termination "fabianvivasz won by checkmate"]

1. d4 {[%clk 0:03:00.9]} 1... Nf6 {[%clk 0:02:59.2]} 2. Nc3 {[%clk 0:02:53.8]}
2... d5 {[%clk 0:02:56.8]} 3. Bf4 {[%clk 0:02:54]} 3... c5 {[%clk 0:02:53.2]} 4.
e3 {[%clk 0:02:54.1]} 4... cxd4 {[%clk 0:02:46.7]} 5. exd4 {[%clk 0:02:55]} 5...
e6 {[%clk 0:02:41.5]} 6. Bd3 {[%clk 0:02:51.1]} 6... Nc6 {[%clk 0:02:30]} 7. Nb5
{[%clk 0:02:50.2]} 7... Qa5+ {[%clk 0:02:09.3]} 8. c3 {[%clk 0:02:43.7]} 8...
Kd7 {[%clk 0:01:42.9]} 9. Nc7 {[%clk 0:02:17.7]} 9... Rb8 {[%clk 0:01:41.8]} 10.
b4 {[%clk 0:02:18.3]} 10... Bxb4 {[%clk 0:01:07.7]} 11. cxb4 {[%clk 0:02:19.2]}
11... Qxb4+ {[%clk 0:01:08]} 12. Qd2 {[%clk 0:02:07.7]} 12... Qxd4 {[%clk
0:01:07.5]} 13. Nxd5 {[%clk 0:01:45.7]} 13... Qxa1+ {[%clk 0:01:04]} 14. Ke2
{[%clk 0:01:37.8]} 14... Nd4+ {[%clk 0:01:02.4]} 15. Ke3 {[%clk 0:01:37.9]}
15... Nxd5+ {[%clk 0:01:02.2]} 16. Ke4 {[%clk 0:01:37.2]} 16... f5+ {[%clk
0:01:02.4]} 17. Ke5 {[%clk 0:01:36.9]} 17... Nf3# {[%clk 0:01:02.3]} 0-1

[Event "*** Titled Tuesday Blitz"]
[Site "Chess.com"]
[Date "2020.05.26"]
[Round "3"]
[White "Savva09022009"]
[Black "GmSergioBarrientos"]
[Result "0-1"]
[WhiteElo "2397"]
[BlackElo "2601"]
[TimeControl "180+1"]
[EndTime "10:24:52 PDT"]
[Termination "GmSergioBarrientos won by resignation"]

1. d4 {[%clk 0:02:59.8]} 1... Nf6 {[%clk 0:02:59.5]} 2. Nc3 {[%clk 0:02:58.2]}
2... d5 {[%clk 0:02:57.8]} 3. Bf4 {[%clk 0:02:55.6]} 3... a6 {[%clk 0:02:54.9]}
4. e3 {[%clk 0:02:50]} 4... c5 {[%clk 0:02:54.5]} 5. Nf3 {[%clk 0:02:47.9]} 5...
Nc6 {[%clk 0:02:54.2]} 6. dxc5 {[%clk 0:02:47.3]} 6... e6 {[%clk 0:02:53.3]} 7.
Bd3 {[%clk 0:02:44]} 7... Bxc5 {[%clk 0:02:52.6]} 8. O-O {[%clk 0:02:43.5]} 8...
O-O {[%clk 0:02:50.4]} 9. e4 {[%clk 0:02:43.3]} 9... h6 {[%clk 0:02:40.7]} 10.
exd5 {[%clk 0:02:39.3]} 10... exd5 {[%clk 0:02:35.5]} 11. h3 {[%clk 0:02:36.4]}
11... Be6 {[%clk 0:02:30.4]} 12. Ne2 {[%clk 0:02:29.4]} 12... Qb6 {[%clk
0:02:28.2]} 13. b3 {[%clk 0:02:21]} 13... Ne4 {[%clk 0:02:28.1]} 14. c3 {[%clk
0:02:18]} 14... Nxf2 {[%clk 0:02:24.2]} 15. Rxf2 {[%clk 0:02:16.5]} 15... Bxf2+
{[%clk 0:02:24.2]} 16. Kh1 {[%clk 0:02:14.8]} 16... Be3 {[%clk 0:02:22.7]} 17.
Bxe3 {[%clk 0:01:59.1]} 17... Qxe3 {[%clk 0:02:22]} 18. Qc2 {[%clk 0:02:00]}
18... Rae8 {[%clk 0:02:15.9]} 19. Ned4 {[%clk 0:01:56.1]} 19... Nxd4 {[%clk
0:02:14.1]} 20. Nxd4 {[%clk 0:01:52.7]} 20... Bxh3 {[%clk 0:02:07.1]} 21. gxh3
{[%clk 0:01:38.7]} 21... Qxh3+ {[%clk 0:02:06.3]} 22. Kg1 {[%clk 0:01:39.6]}
22... Qg3+ {[%clk 0:02:04.2]} 23. Kh1 {[%clk 0:01:35.8]} 23... Re3 {[%clk
0:01:48]} 24. Bf5 {[%clk 0:01:29.4]} 24... Rfe8 {[%clk 0:01:34.8]} 25. Qh2
{[%clk 0:01:19]} 25... Re1+ {[%clk 0:01:33.2]} 0-1

[Event "*** Titled Tuesday Blitz"]
[Site "Chess.com"]
[Date "2020.05.26"]
[Round "3"]
[White "Nayemhaque22"]
[Black "kingofthenil"]
[Result "0-1"]
[WhiteElo "2202"]
[BlackElo "2437"]
[TimeControl "180+1"]
[EndTime "10:24:54 PDT"]
[Termination "kingofthenil won by checkmate"]

1. e4 {[%clk 0:03:00.9]} 1... Nc6 {[%clk 0:03:00.9]} 2. Nf3 {[%clk 0:03:00.2]}
2... d5 {[%clk 0:03:01.8]} 3. exd5 {[%clk 0:02:58.7]} 3... Qxd5 {[%clk
0:03:02.7]} 4. Nc3 {[%clk 0:02:58.3]} 4... Qh5 {[%clk 0:03:03.6]} 5. Be2 {[%clk
0:02:58.1]} 5... Bg4 {[%clk 0:03:04.5]} 6. O-O {[%clk 0:02:57.8]} 6... O-O-O
{[%clk 0:03:05.4]} 7. h3 {[%clk 0:02:51.1]} 7... Bxh3 {[%clk 0:03:05.4]} 8. gxh3
{[%clk 0:02:50.6]} 8... Qxh3 {[%clk 0:03:06.3]} 9. d4 {[%clk 0:02:33.6]} 9... e5
{[%clk 0:03:03.5]} 10. d5 {[%clk 0:02:26.4]} 10... Rd6 {[%clk 0:02:53.2]} 11.
Nxe5 {[%clk 0:02:07.2]} 11... Nxe5 {[%clk 0:02:51.7]} 12. Bf4 {[%clk 0:02:03.5]}
12... Rg6+ {[%clk 0:02:44.9]} 13. Bg3 {[%clk 0:02:02.9]} 13... Rxg3+ {[%clk
0:01:49.9]} 14. fxg3 {[%clk 0:02:02]} 14... Qxg3+ {[%clk 0:01:50.8]} 15. Kh1
{[%clk 0:02:01.7]} 15... Qh3+ {[%clk 0:01:51.7]} 16. Kg1 {[%clk 0:02:01.4]}
16... Qg3+ {[%clk 0:01:41.2]} 17. Kh1 {[%clk 0:02:01]} 17... Bc5 {[%clk
0:01:26.2]} 18. Ne4 {[%clk 0:01:14.1]} 18... Qh3# {[%clk 0:01:21.1]} 0-1

[Event "*** Titled Tuesday Blitz"]
[Site "Chess.com"]
[Date "2020.05.26"]
[Round "3"]
[White "Franciscoconstantino"]
[Black "TheBigBadChessDad"]
[Result "0-1"]
[WhiteElo "1607"]
[BlackElo "2244"]
[TimeControl "180+1"]
[EndTime "10:24:58 PDT"]
[Termination "TheBigBadChessDad won by checkmate"]

1. d4 {[%clk 0:03:00.9]} 1... d5 {[%clk 0:02:58.8]} 2. c4 {[%clk 0:03:00.5]}
2... e6 {[%clk 0:02:59.2]} 3. Nf3 {[%clk 0:02:59.7]} 3... Nf6 {[%clk 0:02:59.2]}
4. Nc3 {[%clk 0:02:58.5]} 4... Be7 {[%clk 0:02:58.2]} 5. Bg5 {[%clk 0:02:57]}
5... Nbd7 {[%clk 0:02:57.3]} 6. e3 {[%clk 0:02:55.4]} 6... h6 {[%clk 0:02:56]}
7. Bf4 {[%clk 0:02:48.7]} 7... a6 {[%clk 0:02:54.1]} 8. Bd3 {[%clk 0:02:35.4]}
8... dxc4 {[%clk 0:02:51.4]} 9. Bxc4 {[%clk 0:02:36.3]} 9... b5 {[%clk
0:02:51.7]} 10. Bd3 {[%clk 0:02:35]} 10... Bb7 {[%clk 0:02:51.9]} 11. O-O {[%clk
0:02:33.5]} 11... c5 {[%clk 0:02:51.2]} 12. Rc1 {[%clk 0:02:22]} 12... Rc8
{[%clk 0:02:49]} 13. a4 {[%clk 0:01:55.8]} 13... c4 {[%clk 0:02:42.3]} 14. Be2
{[%clk 0:01:50.2]} 14... Qb6 {[%clk 0:02:20.9]} 15. b3 {[%clk 0:01:28]} 15... b4
{[%clk 0:02:14.1]} 16. bxc4 {[%clk 0:00:51.8]} 16... bxc3 {[%clk 0:02:11.3]} 17.
Rxc3 {[%clk 0:00:52.7]} 17... Bb4 {[%clk 0:02:07]} 18. Rb3 {[%clk 0:00:51.3]}
18... a5 {[%clk 0:02:07.1]} 19. Nd2 {[%clk 0:00:44.2]} 19... O-O {[%clk
0:01:58.3]} 20. c5 {[%clk 0:00:43.3]} 20... Qc6 {[%clk 0:01:53.5]} 21. Nc4
{[%clk 0:00:42.7]} 21... Qxg2# {[%clk 0:01:51.3]} 0-1

[Event "*** Titled Tuesday Blitz"]
[Site "Chess.com"]
[Date "2020.05.26"]
[Round "3"]
[White "platy3"]
[Black "sotochess"]
[Result "0-1"]
[WhiteElo "2689"]
[BlackElo "2248"]
[TimeControl "180+1"]
[EndTime "10:25:01 PDT"]
[Termination "sotochess won by resignation"]

1. e4 {[%clk 0:03:00.5]} 1... e5 {[%clk 0:02:56.8]} 2. Nf3 {[%clk 0:02:55.3]}
2... d6 {[%clk 0:02:53.5]} 3. Nc3 {[%clk 0:02:54.2]} 3... Nf6 {[%clk 0:02:53]}
4. d4 {[%clk 0:02:54.6]} 4... Nbd7 {[%clk 0:02:53]} 5. Bc4 {[%clk 0:02:54.3]}
5... Be7 {[%clk 0:02:52.8]} 6. a4 {[%clk 0:02:54.8]} 6... O-O {[%clk 0:02:52.1]}
7. O-O {[%clk 0:02:55.3]} 7... c6 {[%clk 0:02:52.3]} 8. h3 {[%clk 0:02:54.5]}
8... a5 {[%clk 0:02:52.7]} 9. Re1 {[%clk 0:02:53.1]} 9... Qc7 {[%clk 0:02:52.5]}
10. Ba2 {[%clk 0:02:51.5]} 10... Nb8 {[%clk 0:02:49.8]} 11. dxe5 {[%clk
0:02:47.9]} 11... dxe5 {[%clk 0:02:49.7]} 12. Nh4 {[%clk 0:02:48.4]} 12... Na6
{[%clk 0:02:49.3]} 13. Qf3 {[%clk 0:02:38.1]} 13... Nb4 {[%clk 0:02:48.7]} 14.
Bb3 {[%clk 0:02:38.7]} 14... Be6 {[%clk 0:02:48.7]} 15. Nf5 {[%clk 0:02:37.8]}
15... Bxb3 {[%clk 0:02:47]} 16. cxb3 {[%clk 0:02:38.2]} 16... Nc2 {[%clk
0:02:46.9]} 17. Bh6 {[%clk 0:02:36.7]} 17... Nxe1 {[%clk 0:02:45]} 18. Rxe1
{[%clk 0:02:33.8]} 18... Ne8 {[%clk 0:02:44.9]} 19. Bxg7 {[%clk 0:01:26.4]}
19... Nxg7 {[%clk 0:02:43.3]} 20. Nh6+ {[%clk 0:01:26.6]} 20... Kh8 {[%clk
0:02:42.2]} 21. Nxf7+ {[%clk 0:01:27.5]} 21... Rxf7 {[%clk 0:02:41.9]} 22. Qxf7
{[%clk 0:01:28.4]} 22... Rf8 {[%clk 0:02:41.9]} 23. Qc4 {[%clk 0:01:29]} 23...
Qb6 {[%clk 0:02:40.3]} 24. Re2 {[%clk 0:01:26.4]} 24... Bc5 {[%clk 0:02:37]} 25.
Nd1 {[%clk 0:01:23.2]} 25... Bd4 {[%clk 0:02:34.8]} 26. g3 {[%clk 0:01:20.5]}
26... Qb4 {[%clk 0:02:34.5]} 27. Qxb4 {[%clk 0:01:13.2]} 27... axb4 {[%clk
0:02:34.3]} 28. Ne3 {[%clk 0:01:08.8]} 28... Bxe3 {[%clk 0:02:28.8]} 29. Rxe3
{[%clk 0:01:08.6]} 29... Ne6 {[%clk 0:02:29.3]} 30. Rd3 {[%clk 0:00:59.9]} 30...
Nd4 {[%clk 0:02:28.8]} 31. f4 {[%clk 0:01:00.4]} 31... c5 {[%clk 0:02:28.9]} 32.
f5 {[%clk 0:00:59.6]} 32... Kg7 {[%clk 0:02:28.5]} 33. g4 {[%clk 0:00:59.8]}
33... Kf6 {[%clk 0:02:27.8]} 34. Kf2 {[%clk 0:01:00.5]} 34... h5 {[%clk
0:02:26.6]} 35. Kg3 {[%clk 0:00:59.3]} 35... hxg4 {[%clk 0:02:26.2]} 36. hxg4
{[%clk 0:01:00.2]} 36... Rh8 {[%clk 0:02:21.1]} 37. Rd1 {[%clk 0:00:59.3]} 37...
Kg5 {[%clk 0:02:17.8]} 0-1

[Event "*** Titled Tuesday Blitz"]
[Site "Chess.com"]
[Date "2020.05.26"]
[Round "3"]
[White "Aleksandr_Kozak"]
[Black "francyIM"]
[Result "0-1"]
[WhiteElo "2334"]
[BlackElo "2712"]
[TimeControl "180+1"]
[EndTime "10:25:09 PDT"]
[Termination "francyIM won by resignation"]

1. e4 {[%clk 0:03:00.9]} 1... e5 {[%clk 0:02:56.1]} 2. Nf3 {[%clk 0:02:59.7]}
2... Nc6 {[%clk 0:02:55.6]} 3. Bb5 {[%clk 0:02:58.6]} 3... a6 {[%clk 0:02:55.2]}
4. Ba4 {[%clk 0:02:57.7]} 4... d6 {[%clk 0:02:54.5]} 5. c3 {[%clk 0:02:54.3]}
5... Nf6 {[%clk 0:02:53.1]} 6. d3 {[%clk 0:02:45.6]} 6... g6 {[%clk 0:02:46.3]}
7. O-O {[%clk 0:02:44.4]} 7... Bg7 {[%clk 0:02:45.9]} 8. Re1 {[%clk 0:02:37.8]}
8... O-O {[%clk 0:02:45.7]} 9. Nbd2 {[%clk 0:02:37.5]} 9... Bd7 {[%clk
0:02:45.4]} 10. Nf1 {[%clk 0:02:36.5]} 10... h6 {[%clk 0:02:44.4]} 11. Ng3
{[%clk 0:02:35.9]} 11... Re8 {[%clk 0:02:43.7]} 12. b4 {[%clk 0:02:24.3]} 12...
b5 {[%clk 0:02:30.4]} 13. Bb3 {[%clk 0:02:22.7]} 13... a5 {[%clk 0:02:31]} 14.
Bd2 {[%clk 0:02:15.6]} 14... axb4 {[%clk 0:02:26.3]} 15. cxb4 {[%clk 0:02:15.1]}
15... Bg4 {[%clk 0:02:25]} 16. h3 {[%clk 0:02:11.2]} 16... Bxf3 {[%clk
0:02:23.7]} 17. Qxf3 {[%clk 0:02:10.3]} 17... Nd4 {[%clk 0:02:24.6]} 18. Qd1
{[%clk 0:02:10.4]} 18... Ra3 {[%clk 0:02:12.4]} 19. Bc1 {[%clk 0:02:04.4]} 19...
Ra6 {[%clk 0:02:01.1]} 20. Bb2 {[%clk 0:02:00.8]} 20... Nxb3 {[%clk 0:01:56.3]}
21. Qxb3 {[%clk 0:02:00.2]} 21... d5 {[%clk 0:01:51.8]} 22. a3 {[%clk
0:01:53.3]} 22... Qd7 {[%clk 0:01:48.8]} 23. Rac1 {[%clk 0:01:51.2]} 23... Rd6
{[%clk 0:01:47.4]} 24. Rc5 {[%clk 0:01:47.4]} 24... dxe4 {[%clk 0:01:43.6]} 25.
dxe4 {[%clk 0:01:47.3]} 25... Rd3 {[%clk 0:01:42]} 26. Qc2 {[%clk 0:01:43.8]}
26... Rd2 {[%clk 0:01:36.3]} 27. Qc3 {[%clk 0:01:40.4]} 27... Re7 {[%clk
0:01:26.9]} 28. Rxe5 {[%clk 0:01:35.2]} 28... Rxe5 {[%clk 0:01:25.9]} 29. Qxe5
{[%clk 0:01:34.2]} 29... Ne8 {[%clk 0:01:26]} 30. Qf4 {[%clk 0:01:25.1]} 30...
Rxb2 {[%clk 0:01:24.3]} 31. Qxh6 {[%clk 0:01:25.7]} 31... Bxh6 {[%clk
0:01:22.8]} 0-1

[Event "*** Titled Tuesday Blitz"]
[Site "Chess.com"]
[Date "2020.05.26"]
[Round "3"]
[White "etesungam"]
[Black "Chessalary"]
[Result "1-0"]
[WhiteElo "2407"]
[BlackElo "2184"]
[TimeControl "180+1"]
[EndTime "10:25:09 PDT"]
[Termination "etesungam won on time"]

1. d4 {[%clk 0:03:00.9]} 1... Nf6 {[%clk 0:02:54.8]} 2. c4 {[%clk 0:03:00.8]}
2... g6 {[%clk 0:02:55.7]} 3. Nc3 {[%clk 0:03:00.8]} 3... Bg7 {[%clk 0:02:56]}
4. e4 {[%clk 0:03:01.1]} 4... d6 {[%clk 0:02:48.8]} 5. f3 {[%clk 0:03:01.4]}
5... O-O {[%clk 0:02:42.5]} 6. Bg5 {[%clk 0:02:55]} 6... Nc6 {[%clk 0:02:15.6]}
7. Qd2 {[%clk 0:02:51.9]} 7... e5 {[%clk 0:02:06.5]} 8. d5 {[%clk 0:02:51.5]}
8... Ne7 {[%clk 0:02:03.2]} 9. Nge2 {[%clk 0:02:47.1]} 9... Nh5 {[%clk
0:02:02.7]} 10. g4 {[%clk 0:02:37.6]} 10... Nf4 {[%clk 0:02:03]} 11. Nxf4 {[%clk
0:02:36.9]} 11... exf4 {[%clk 0:02:03.9]} 12. Bxf4 {[%clk 0:02:37]} 12... f5
{[%clk 0:02:00.4]} 13. gxf5 {[%clk 0:02:35.4]} 13... gxf5 {[%clk 0:01:57.5]} 14.
Rg1 {[%clk 0:02:26.8]} 14... Ng6 {[%clk 0:01:53.7]} 15. Bg5 {[%clk 0:02:19.9]}
15... Bf6 {[%clk 0:01:47.5]} 16. Bh3 {[%clk 0:02:15.8]} 16... Bxg5 {[%clk
0:01:28.3]} 17. Qxg5 {[%clk 0:02:15]} 1-0

[Event "*** Titled Tuesday Blitz"]
[Site "Chess.com"]
[Date "2020.05.26"]
[Round "3"]
[White "ValeriyGrinev"]
[Black "Mostii"]
[Result "1-0"]
[WhiteElo "2573"]
[BlackElo "2364"]
[TimeControl "180+1"]
[EndTime "10:25:11 PDT"]
[Termination "ValeriyGrinev won by checkmate"]

1. c4 {[%clk 0:03:00.9]} 1... b6 {[%clk 0:02:59.4]} 2. Nc3 {[%clk 0:02:57.9]}
2... Bb7 {[%clk 0:02:58.8]} 3. e4 {[%clk 0:02:58.3]} 3... e6 {[%clk 0:02:59]} 4.
d3 {[%clk 0:02:50.7]} 4... g6 {[%clk 0:02:58.5]} 5. g3 {[%clk 0:02:49.1]} 5...
Bg7 {[%clk 0:02:58.8]} 6. Bg2 {[%clk 0:02:49.8]} 6... Ne7 {[%clk 0:02:59]} 7.
Nge2 {[%clk 0:02:50.1]} 7... O-O {[%clk 0:02:59.4]} 8. O-O {[%clk 0:02:49.8]}
8... d6 {[%clk 0:02:58.8]} 9. Be3 {[%clk 0:02:48.4]} 9... Nd7 {[%clk 0:02:58.8]}
10. Qd2 {[%clk 0:02:45.8]} 10... a5 {[%clk 0:02:56.9]} 11. Bh6 {[%clk
0:02:44.4]} 11... e5 {[%clk 0:02:56]} 12. Bxg7 {[%clk 0:02:43.1]} 12... Kxg7
{[%clk 0:02:56.9]} 13. f4 {[%clk 0:02:43.1]} 13... f5 {[%clk 0:02:55.4]} 14. d4
{[%clk 0:02:32.6]} 14... fxe4 {[%clk 0:02:34.5]} 15. Nxe4 {[%clk 0:02:12.5]}
15... Nf5 {[%clk 0:01:31.7]} 16. Ng5 {[%clk 0:01:59.1]} 16... Qc8 {[%clk
0:00:56.3]} 17. Ne6+ {[%clk 0:01:56.3]} 17... Kf7 {[%clk 0:00:57.2]} 18. Nxf8
{[%clk 0:01:56.4]} 18... Kxf8 {[%clk 0:00:58.1]} 19. fxe5 {[%clk 0:01:53.6]}
19... Bxg2 {[%clk 0:00:56.8]} 20. Kxg2 {[%clk 0:01:53.1]} 20... Qb7+ {[%clk
0:00:57.3]} 21. d5 {[%clk 0:01:53.2]} 21... Nxe5 {[%clk 0:00:55.7]} 22. Nd4
{[%clk 0:01:53.7]} 22... Ke7 {[%clk 0:00:54]} 23. Nxf5+ {[%clk 0:01:53.5]} 23...
gxf5 {[%clk 0:00:54.9]} 24. Rxf5 {[%clk 0:01:53.6]} 24... Kd7 {[%clk 0:00:55.3]}
25. Raf1 {[%clk 0:01:50.4]} 25... Rd8 {[%clk 0:00:54.5]} 26. Qh6 {[%clk
0:01:38.6]} 26... Nxc4 {[%clk 0:00:50.9]} 27. Qe6# {[%clk 0:01:38.9]} 1-0

[Event "*** Titled Tuesday Blitz"]
[Site "Chess.com"]
[Date "2020.05.26"]
[Round "3"]
[White "nubair1198"]
[Black "JozefKneht"]
[Result "1-0"]
[WhiteElo "2722"]
[BlackElo "2476"]
[TimeControl "180+1"]
[EndTime "10:25:14 PDT"]
[Termination "nubair1198 won by resignation"]

1. d4 {[%clk 0:02:59.3]} 1... d5 {[%clk 0:02:59.2]} 2. c4 {[%clk 0:02:55.2]}
2... e6 {[%clk 0:02:58.8]} 3. Nc3 {[%clk 0:02:53.2]} 3... Nf6 {[%clk 0:02:58.4]}
4. cxd5 {[%clk 0:02:51]} 4... exd5 {[%clk 0:02:59.3]} 5. Bg5 {[%clk 0:02:50.5]}
5... Be7 {[%clk 0:02:59.8]} 6. e3 {[%clk 0:02:50.7]} 6... O-O {[%clk 0:03:00.3]}
7. Bd3 {[%clk 0:02:50.2]} 7... c6 {[%clk 0:03:00.7]} 8. Qc2 {[%clk 0:02:49.8]}
8... Nbd7 {[%clk 0:03:01.2]} 9. Nf3 {[%clk 0:02:49.8]} 9... Re8 {[%clk
0:03:01.8]} 10. O-O {[%clk 0:02:48.2]} 10... Nf8 {[%clk 0:03:02.5]} 11. Rab1
{[%clk 0:02:46.2]} 11... a5 {[%clk 0:03:01.4]} 12. a3 {[%clk 0:02:46.1]} 12...
Ne4 {[%clk 0:03:01.4]} 13. Bxe7 {[%clk 0:02:45.6]} 13... Qxe7 {[%clk 0:03:02.3]}
14. b4 {[%clk 0:02:46.1]} 14... Ng6 {[%clk 0:03:00]} 15. Rfc1 {[%clk 0:02:42.3]}
15... axb4 {[%clk 0:02:59.2]} 16. axb4 {[%clk 0:02:42.3]} 16... Bg4 {[%clk
0:02:57.3]} 17. Bxe4 {[%clk 0:02:42.3]} 17... dxe4 {[%clk 0:02:57.2]} 18. Nd2
{[%clk 0:02:43]} 18... f5 {[%clk 0:02:57.5]} 19. h3 {[%clk 0:02:42.6]} 19... Bh5
{[%clk 0:02:56.3]} 20. b5 {[%clk 0:02:42.5]} 20... Nh4 {[%clk 0:02:54.6]} 21.
bxc6 {[%clk 0:02:38.1]} 21... bxc6 {[%clk 0:02:54]} 22. Nf1 {[%clk 0:02:35.8]}
22... Nxg2 {[%clk 0:02:44.4]} 23. Kxg2 {[%clk 0:02:32.6]} 23... Bf3+ {[%clk
0:02:44.3]} 24. Kh2 {[%clk 0:02:26.8]} 24... Qd6+ {[%clk 0:02:43.6]} 25. Ng3
{[%clk 0:02:24.8]} 25... h5 {[%clk 0:02:44]} 26. Qb3+ {[%clk 0:01:49.7]} 26...
Kh7 {[%clk 0:02:21.5]} 27. Qb4 {[%clk 0:01:48]} 27... Qg6 {[%clk 0:02:00.5]} 28.
Rg1 {[%clk 0:01:42.7]} 28... Reb8 {[%clk 0:01:54.2]} 29. Qxb8 {[%clk 0:01:37]}
29... Rxb8 {[%clk 0:01:52.9]} 30. Rxb8 {[%clk 0:01:37.9]} 30... h4 {[%clk
0:01:50.3]} 31. Ngxe4 {[%clk 0:01:33.1]} 1-0

[Event "*** Titled Tuesday Blitz"]
[Site "Chess.com"]
[Date "2020.05.26"]
[Round "3"]
[White "GM4life"]
[Black "ChessMavenYeti"]
[Result "1-0"]
[WhiteElo "2382"]
[BlackElo "2102"]
[TimeControl "180+1"]
[EndTime "10:25:16 PDT"]
[Termination "GM4life won by resignation"]

1. e4 {[%clk 0:03:00.9]} 1... e5 {[%clk 0:02:59.1]} 2. Nf3 {[%clk 0:03:00.2]}
2... Nf6 {[%clk 0:02:59.7]} 3. Nxe5 {[%clk 0:02:58.9]} 3... d6 {[%clk
0:02:59.6]} 4. Nf3 {[%clk 0:02:59]} 4... Nxe4 {[%clk 0:03:00.1]} 5. d4 {[%clk
0:02:59.5]} 5... d5 {[%clk 0:02:59.9]} 6. Bd3 {[%clk 0:03:00.1]} 6... Bd6 {[%clk
0:02:59.9]} 7. O-O {[%clk 0:02:59.9]} 7... O-O {[%clk 0:03:00.1]} 8. c4 {[%clk
0:03:00.5]} 8... c6 {[%clk 0:02:59.8]} 9. Nc3 {[%clk 0:02:59.9]} 9... Nxc3
{[%clk 0:02:58.7]} 10. bxc3 {[%clk 0:03:00.8]} 10... dxc4 {[%clk 0:02:59.2]} 11.
Bxc4 {[%clk 0:03:00.5]} 11... Bf5 {[%clk 0:02:59.9]} 12. Re1 {[%clk 0:02:55.7]}
12... Nd7 {[%clk 0:02:58.8]} 13. h3 {[%clk 0:02:55.4]} 13... c5 {[%clk
0:02:56.6]} 14. d5 {[%clk 0:02:48.7]} 14... Nb6 {[%clk 0:02:51.2]} 15. Bf1
{[%clk 0:02:45.6]} 15... c4 {[%clk 0:02:49.1]} 16. Qd4 {[%clk 0:02:40.4]} 16...
Qc7 {[%clk 0:02:44.4]} 17. a4 {[%clk 0:02:31.9]} 17... Rfe8 {[%clk 0:02:39.7]}
18. Bd2 {[%clk 0:02:26.8]} 18... Rad8 {[%clk 0:02:37.6]} 19. Rxe8+ {[%clk
0:02:10.8]} 19... Rxe8 {[%clk 0:02:36.5]} 20. a5 {[%clk 0:02:11]} 20... Nc8
{[%clk 0:02:31.3]} 21. Qxc4 {[%clk 0:02:04.9]} 21... Bc5 {[%clk 0:02:08]} 22.
Nd4 {[%clk 0:01:58.4]} 22... Nd6 {[%clk 0:02:01.6]} 23. Qa4 {[%clk 0:01:52.4]}
23... Be4 {[%clk 0:01:51.1]} 24. Bf4 {[%clk 0:01:43.5]} 24... Rd8 {[%clk
0:01:22]} 25. Nb5 {[%clk 0:01:34.2]} 25... Qe7 {[%clk 0:01:15.2]} 26. Nxd6
{[%clk 0:01:33.9]} 26... Bxd6 {[%clk 0:01:13.8]} 27. Bxd6 {[%clk 0:01:34.4]}
27... Rxd6 {[%clk 0:01:14.1]} 28. Re1 {[%clk 0:01:34.6]} 28... f5 {[%clk
0:01:09.7]} 29. f3 {[%clk 0:01:33.8]} 29... Bc2 {[%clk 0:01:09.8]} 30. Rxe7
{[%clk 0:01:23.2]} 30... Bxa4 {[%clk 0:01:09.7]} 31. Rxb7 {[%clk 0:01:23.3]}
31... Rxd5 {[%clk 0:01:10.1]} 32. Bc4 {[%clk 0:01:22.5]} 1-0